bitfinex/quotes_BTCUSD_20220109
["timestamp","ask_amount","ask_price","bid_price","bid_amount"]
[1641742812010,0.29446408,41605.0,41600.0,0.3558166]
[1641742812313,0.048,41605.0,41600.0,0.7758166]
[1641742812508,0.1,41608.0,41601.0,0.33270601]
[1641742812907,0.2,41608.0,41601.0,0.33270601]
[1641742813106,0.2,41608.0,41601.0,0.57265131]
[1641742813508,0.2,41608.0,41607.0,0.42451537]
[1641742813711,0.05,41608.0,41607.0,0.42451537]
[1641742813908,0.1,41608.0,41607.0,0.42451537]
[1641742814208,0.05,41608.0,41607.0,0.42451537]
[1641742814408,0.3004,41609.0,41607.0,0.42451537]
[1641742814812,0.4004,41609.0,41607.0,0.42451537]
[1641742815443,0.4204,41609.0,41607.0,0.42451537]
[1641742816645,0.4004,41609.0,41607.0,0.42451537]
[1641742817448,0.4234,41609.0,41607.0,0.42451537]
[1641742817846,0.483523,41609.0,41607.0,0.42451537]
[1641742818646,0.4004,41609.0,41607.0,0.42451537]
[1641742818849,0.00021126,41610.0,41607.0,0.42451537]
[1641742819507,0.03021126,41610.0,41608.0,0.24984582]
[1641742819708,0.03021126,41610.0,41607.0,0.42451537]
[1641742820109,0.025,41610.0,41607.0,0.42451537]
[1641742820507,0.025,41610.0,41608.0,0.34648689]
[1641742820708,0.00020767,41611.0,41608.0,0.34648689]
[1641742821308,0.00320767,41611.0,41608.0,0.36948689]
[1641742822108,0.003,41611.0,41608.0,0.36948689]
[1641742822507,0.003,41611.0,41608.0,0.34648689]
[1641742822711,0.00020766,41612.0,41608.0,0.34648689]
[1641742822948,0.2001,41613.0,41608.0,0.34648689]
[1641742823147,0.00020781,41612.0,41608.0,0.34648689]
[1641742823348,0.00820781,41612.0,41608.0,0.35748689]
[1641742824150,0.008,41612.0,41608.0,0.35748689]
[1641742824550,0.2001,41613.0,41608.0,0.34648689]
[1641742825356,0.003,41613.0,41608.0,0.35848689]
[1641742825550,0.003,41613.0,41611.0,0.29127424]
[1641742825951,0.003,41613.0,41611.0,0.34067424]
[1641742826150,0.003,41613.0,41611.0,0.54067424]
[1641742826800,1.19672,41622.0,41617.0,0.27087266]
[1641742827000,0.20082,41622.0,41620.0,0.35096228]
[1641742827399,0.19082,41622.0,41620.0,0.35096228]
[1641742827599,0.19103199,41622.0,41620.0,0.35096228]
[1641742828701,0.19082,41622.0,41620.0,0.35096228]
[1641742829101,1.19082,41622.0,41620.0,0.35096228]
[1641742829501,1.22882,41622.0,41620.0,0.35596228]
[1641742830553,1.21882,41622.0,41620.0,0.35596228]
[1641742830847,1.18082,41622.0,41620.0,0.35096228]
[1641742831247,1.17582,41622.0,41620.0,0.35096228]
[1641742831448,1.21682,41622.0,41620.0,0.35596228]
[1641742832749,1.17582,41622.0,41620.0,0.35103249]
[1641742832950,1.17582,41622.0,41620.0,7.021e-05]
[1641742833351,1.18682,41622.0,41620.0,7.021e-05]
[1641742833756,1.18682,41622.0,41614.0,0.2419781]
[1641742833953,1.18682,41622.0,41620.0,0.41119118]
[1641742834206,1.011,41622.0,41620.0,0.56119118]
[1641742834408,1.011,41622.0,41620.0,0.6124099]
[1641742834605,1.0,41622.0,41620.0,0.4124099]
[1641742835005,1.0,41622.0,41621.0,0.31100947]
[1641742836207,1.0,41622.0,41621.0,0.61553406]
[1641742837111,1.0,41622.0,41621.0,0.31100947]
[1641742837312,1.0,41622.0,41613.0,0.12139143]
[1641742837510,1.0,41622.0,41621.0,0.04]
[1641742838351,0.18092561,41622.0,41621.0,0.04]
[1641742838748,0.18092561,41622.0,41611.0,0.3377048]
[1641742838749,0.24102861,41622.0,41611.0,0.3377048]
[1641742838947,0.24102861,41622.0,41611.0,0.33685221]
[1641742839147,0.20046,41617.0,41611.0,0.34065119]
[1641742839347,0.20046,41617.0,41611.0,0.38537222]
[1641742839548,0.18092561,41622.0,41611.0,0.58537222]
[1641742839747,0.00020797,41619.0,41611.0,0.58537222]
[1641742840547,0.00020797,41619.0,41616.0,0.26290994]
[1641742840747,0.18092561,41622.0,41617.0,0.69514757]
[1641742841450,0.18692561,41622.0,41617.0,0.74514757]
[1641742841900,0.18713357,41622.0,41617.0,0.74514757]
[1641742842700,0.18113357,41622.0,41617.0,0.69514757]
[1641742843504,0.18713357,41622.0,41617.0,0.74314757]
[1641742843702,0.18713357,41622.0,41617.0,0.89314757]
[1641742843901,0.18713357,41622.0,41619.0,0.0600874]
[1641742844102,0.18734153,41622.0,41620.0,0.31339314]
[1641742844306,0.18713357,41622.0,41620.0,0.31339314]
[1641742844703,0.17613357,41622.0,41620.0,0.31339314]
[1641742845103,0.17592561,41622.0,41620.0,0.31339314]
[1641742845557,0.17592561,41622.0,41620.0,0.32339314]
[1641742845558,0.19792561,41622.0,41620.0,0.32339314]
[1641742845759,0.19792561,41622.0,41620.0,0.01]
[1641742845959,0.19792561,41622.0,41621.0,7.02e-05]
[1641742846764,0.17592561,41622.0,41621.0,7.02e-05]
[1641742847163,0.17592561,41622.0,41619.0,0.1201754]
[1641742847361,0.17592561,41622.0,41621.0,0.02]
[1641742848665,0.17592561,41622.0,41620.0,7.021e-05]
[1641742849063,0.00125991,41629.0,41618.0,0.12016638]
[1641742849500,0.06135391,41629.0,41623.0,0.31092472]
[1641742849705,0.00125991,41629.0,41625.0,0.40337364]
[1641742849902,0.20082,41631.0,41625.0,0.45337364]
[1641742850102,0.00598365,41645.0,41630.0,0.00126866]
[1641742850103,0.00129809,41638.0,41630.0,0.00126866]
[1641742850302,0.286,41645.0,41630.0,0.00126866]
[1641742850303,0.20088,41644.0,41630.0,0.00126866]
[1641742850503,0.03207093,41641.0,41630.0,0.00126866]
[1641742850803,0.27103272,41638.0,41634.0,0.38334149]
[1641742851207,0.03207093,41640.0,41635.0,0.3069538]
[1641742851403,0.006,41638.0,41635.0,0.3069538]
[1641742852203,0.006,41638.0,41635.0,0.60802405]
[1641742852404,0.006,41638.0,41635.0,0.3069538]
[1641742852803,0.32591034,41641.0,41635.0,0.3069538]
[1641742853451,0.060078,41640.0,41635.0,0.3159538]
[1641742853653,0.20082,41638.0,41635.0,0.009]
[1641742854654,0.52971483,41638.0,41635.0,0.009]
[1641742854855,0.3610351,41637.0,41630.0,0.00126866]
[1641742855056,0.3610351,41637.0,41627.0,0.2951]
[1641742855355,0.3610351,41637.0,41626.0,0.31008482]
[1641742855356,0.20052,41632.0,41626.0,0.29876678]
[1641742855556,0.20052,41632.0,41630.0,0.017]
[1641742856359,0.28030216,41633.0,41630.0,0.017]
[1641742856557,0.20088,41632.0,41630.0,0.017]
[1641742856806,0.00021181,41633.0,41630.0,0.017]
[1641742857206,0.00042362,41633.0,41626.0,0.29876678]
[1641742857407,0.00421181,41633.0,41630.0,0.042]
[1641742858408,0.004,41633.0,41630.0,0.042]
[1641742858808,0.00020773,41634.0,41626.0,0.29876678]
[1641742859412,0.260963,41637.0,41626.0,0.29876678]
[1641742859413,0.00020786,41632.0,41626.0,0.36776678]
[1641742860211,0.00020786,41632.0,41626.0,0.41776678]
[1641742860461,0.00020786,41632.0,41626.0,0.62784472]
[1641742860651,0.00020786,41631.0,41626.0,0.62784472]
[1641742860852,0.00020786,41631.0,41626.0,0.55884472]
[1641742861454,0.00020786,41631.0,41626.0,0.58584472]
[1641742861654,0.00020786,41631.0,41626.0,0.52576678]
[1641742861655,0.00020787,41631.0,41626.0,0.52576678]
[1641742862058,0.00020787,41631.0,41626.0,0.32576678]
[1641742862656,0.23640056,41631.0,41626.0,0.027]
[1641742862858,0.30182593,41632.0,41631.0,0.40929547]
[1641742863356,1.10182593,41632.0,41631.0,0.40929547]
[1641742863560,1.11282593,41632.0,41631.0,0.40929547]
[1641742863856,1.40398426,41632.0,41631.0,0.40929547]
[1641742864058,1.8631561,41632.0,41631.0,0.40929547]
[1641742864505,1.96440881,41632.0,41631.0,0.40929547]
[1641742864701,2.04453735,41632.0,41631.0,0.40929547]
[1641742864900,2.03353735,41632.0,41631.0,0.40929547]
[1641742865302,2.33353735,41632.0,41631.0,0.40929547]
[1641742865502,2.33353735,41632.0,41629.0,9.602e-05]
[1641742865503,1.29453735,41632.0,41629.0,9.602e-05]
[1641742865705,0.00121578,41630.0,41629.0,9.602e-05]
[1641742865904,0.69193204,41630.0,41629.0,9.602e-05]
[1641742866104,0.34193204,41630.0,41629.0,9.602e-05]
[1641742866302,0.42406058,41630.0,41629.0,9.602e-05]
[1641742866502,0.53416858,41630.0,41627.0,9.603e-05]
[1641742866704,0.18159415,41629.0,41627.0,9.603e-05]
[1641742866905,1.148,41628.0,41627.0,9.603e-05]
[1641742867102,1.248,41628.0,41627.0,9.603e-05]
[1641742867502,1.26,41628.0,41627.0,9.603e-05]
[1641742867703,0.060107,41627.0,41625.0,0.00017403]
[1641742867954,1.240322,41628.0,41625.0,0.00017403]
[1641742868154,1.288322,41628.0,41625.0,0.00017403]
[1641742868655,1.288322,41628.0,41624.0,0.00017416]
[1641742868857,1.176322,41628.0,41624.0,0.00017416]
[1641742869457,1.1,41625.0,41624.0,0.00017416]
[1641742869657,1.57108791,41625.0,41624.0,0.00017416]
[1641742869855,1.77919691,41625.0,41624.0,0.00017417]
[1641742870256,2.09679604,41625.0,41624.0,0.00017417]
[1641742870656,2.80032719,41625.0,41624.0,0.00017417]
[1641742870857,2.80032719,41625.0,41622.0,0.00017418]
[1641742870858,2.10088145,41625.0,41622.0,0.00017418]
[1641742871457,2.10988145,41625.0,41622.0,0.00017418]
[1641742872108,2.26998845,41625.0,41621.0,0.00017761]
[1641742872407,0.060109,41623.0,41621.0,0.00017761]
[1641742872604,1.208108,41622.0,41621.0,0.00017761]
[1641742873005,1.308108,41622.0,41621.0,0.00017761]
[1641742873205,1.308108,41622.0,41620.0,0.00017742]
[1641742873607,1.319108,41622.0,41620.0,0.00017742]
[1641742874206,1.319108,41622.0,41619.0,0.00017743]
[1641742874906,1.308108,41622.0,41619.0,0.00017743]
[1641742875307,1.308108,41622.0,41618.0,0.00017743]
[1641742875549,1.316108,41622.0,41618.0,0.00017743]
[1641742876451,1.316108,41622.0,41618.0,0.00017736]
[1641742876849,1.308108,41622.0,41618.0,0.00017736]
[1641742877550,1.317108,41622.0,41618.0,0.00017738]
[1641742878053,0.117108,41622.0,41619.0,0.33633589]
[1641742878253,0.03215785,41621.0,41619.0,0.33633589]
[1641742878653,0.057,41622.0,41619.0,0.33633589]
[1641742878855,0.048,41622.0,41619.0,0.33633589]
[1641742879506,0.058,41622.0,41619.0,0.33633589]
[1641742879900,0.058,41622.0,41620.0,0.27437396]
[1641742880103,0.01,41622.0,41620.0,0.27437396]
[1641742880901,0.2608,41625.0,41620.0,0.27437396]
[1641742881301,0.032269,41624.0,41620.0,0.27437396]
[1641742882001,0.032269,41624.0,41620.0,0.27455133]
[1641742883051,1.0,41622.0,41620.0,0.27455133]
[1641742883655,1.01,41622.0,41621.0,0.29083459]
[1641742883853,0.19096608,41622.0,41621.0,0.29083459]
[1641742884254,0.19096608,41622.0,41621.0,0.37704191]
[1641742884455,0.19096608,41622.0,41621.0,1.26380464]
[1641742884655,0.10020789,41633.0,41632.0,0.27941971]
[1641742885057,0.00020789,41633.0,41632.0,0.27941971]
[1641742885254,0.00041578,41633.0,41632.0,0.59799771]
[1641742885456,0.00020789,41633.0,41632.0,0.27941971]
[1641742885653,0.00020789,41633.0,41632.0,0.28441971]
[1641742885654,0.04520789,41633.0,41632.0,0.28441971]
[1641742886454,0.045,41633.0,41632.0,0.28441971]
[1641742887207,0.045,41633.0,41632.0,0.59269557]
[1641742887406,0.045,41633.0,41632.0,0.27941971]
[1641742887609,0.035,41633.0,41632.0,0.28541971]
[1641742888807,0.0002039,41635.0,41632.0,0.27941971]
[1641742889608,0.0022039,41635.0,41632.0,0.27941971]
[1641742889811,0.002,41635.0,41632.0,0.27941971]
[1641742890854,0.00020792,41636.0,41632.0,0.40887771]
[1641742891056,0.00020792,41636.0,41633.0,0.06006776]
[1641742891856,0.00020791,41637.0,41632.0,0.27941971]
[1641742893759,0.00020791,41637.0,41632.0,0.2794899]
[1641742894808,0.00020791,41637.0,41632.0,0.27941971]
[1641742896409,0.00020791,41637.0,41633.0,0.06006803]
[1641742897608,0.00020791,41637.0,41633.0,0.54550388]
[1641742899264,0.03220573,41643.0,41638.0,0.35421974]
[1641742899662,0.03220571,41643.0,41638.0,0.35421974]
[1641742900462,0.09227871,41643.0,41638.0,0.35421974]
[1641742900663,0.09144723,41643.0,41638.0,0.35421974]
[1641742900867,0.060073,41643.0,41638.0,0.35421974]
[1641742901062,0.060073,41643.0,41635.0,0.00015248]
[1641742901264,0.28321583,41639.0,41635.0,0.00015248]
[1641742901564,0.28321583,41639.0,41635.0,0.03715248]
[1641742901565,1.30034,41636.0,41635.0,0.03715248]
[1641742901806,1.74918955,41636.0,41635.0,0.03715248]
[1641742902006,1.78056258,41636.0,41635.0,0.03715248]
[1641742902305,2.18136732,41636.0,41635.0,0.03715248]
[1641742902505,2.30154532,41636.0,41635.0,0.03715248]
[1641742902705,1.85574101,41636.0,41635.0,0.03715248]
[1641742903107,1.85574101,41636.0,41635.0,0.00015248]
[1641742903609,1.91269758,41636.0,41635.0,0.00015248]
[1641742903808,2.2264323,41636.0,41635.0,0.00015248]
[1641742904609,2.27139035,41636.0,41635.0,0.00015248]
[1641742904908,2.25939035,41636.0,41635.0,0.00015248]
[1641742905658,0.75245037,41636.0,41635.0,0.01]
[1641742906060,0.70749232,41636.0,41635.0,0.01]
[1641742906264,0.34880103,41636.0,41635.0,0.01]
[1641742906859,0.33980103,41636.0,41633.0,0.84611596]
[1641742907262,0.03137303,41635.0,41633.0,0.84611596]
[1641742907659,0.03137303,41635.0,41633.0,0.85511596]
[1641742908459,0.03137303,41635.0,41633.0,0.55465636]
[1641742908861,0.03137303,41635.0,41633.0,0.54565636]
[1641742909614,0.04837303,41635.0,41633.0,0.54565636]
[1641742910114,0.58137303,41634.0,41633.0,0.54565636]
[1641742910914,0.93137303,41634.0,41633.0,0.54565636]
[1641742911114,0.58137303,41634.0,41633.0,0.54565636]
[1641742911717,0.59737303,41634.0,41633.0,0.54565636]
[1641742911917,0.04737303,41634.0,41633.0,0.54565636]
[1641742912717,0.39737303,41634.0,41633.0,0.54565636]
[1641742913558,0.38137303,41634.0,41633.0,0.54565636]
[1641742914759,0.73137303,41634.0,41633.0,0.54565636]
[1641742914961,0.73137303,41634.0,41633.0,0.54572654]
[1641742915661,0.77937303,41634.0,41633.0,0.54572654]
[1641742916062,0.42937303,41634.0,41633.0,0.54565636]
[1641742917008,0.38137303,41634.0,41633.0,0.54565636]
[1641742917609,0.40737303,41634.0,41633.0,0.54565636]
[1641742918812,0.75737303,41634.0,41633.0,0.54565636]
[1641742919009,0.38137303,41634.0,41633.0,0.54565636]
[1641742919209,0.03137303,41634.0,41633.0,0.54565636]
[1641742919612,0.013,41634.0,41633.0,0.54565636]
[1641742920659,0.313,41634.0,41633.0,0.54565636]
[1641742921057,0.3,41634.0,41633.0,0.54565636]
[1641742921659,0.313,41634.0,41633.0,0.54565636]
[1641742922560,0.313,41634.0,41633.0,0.54572654]
[1641742923060,0.3,41634.0,41633.0,0.54572654]
[1641742923659,0.34441397,41634.0,41633.0,0.54565636]
[1641742924510,0.34386778,41634.0,41633.0,0.54565636]
[1641742924715,0.34386778,41634.0,41633.0,0.54572654]
[1641742925113,0.33086778,41634.0,41633.0,0.54572654]
[1641742925714,1.14386778,41634.0,41633.0,0.54565636]
[1641742925914,1.65329464,41634.0,41633.0,0.54565636]
[1641742926113,1.74629684,41634.0,41633.0,0.54565636]
[1641742927015,1.73329684,41634.0,41633.0,0.54565636]
[1641742927414,1.34405498,41634.0,41633.0,0.54565636]
[1641742927815,1.35605498,41634.0,41633.0,0.54565636]
[1641742928062,1.71880022,41634.0,41633.0,0.54565636]
[1641742928263,2.71880022,41634.0,41633.0,0.54565636]
[1641742928863,2.70680022,41634.0,41633.0,0.54565636]
[1641742929765,2.71980022,41634.0,41633.0,0.54565636]
[1641742930565,2.87103324,41634.0,41633.0,0.54565636]
[1641742930766,2.94352378,41634.0,41633.0,0.54565636]
[1641742930967,2.93052378,41634.0,41633.0,0.54565636]
[1641742931812,2.94252378,41634.0,41633.0,0.54565636]
[1641742932417,3.14252378,41634.0,41633.0,0.54565636]
[1641742932714,2.34252378,41634.0,41633.0,0.12973105]
[1641742933115,2.08106997,41634.0,41633.0,0.12973105]
[1641742933717,2.09406997,41634.0,41633.0,0.12973105]
[1641742934318,0.2,41633.0,41631.0,0.00017775]
[1641742934517,0.81821015,41632.0,41631.0,0.00017775]
[1641742934716,0.84962412,41632.0,41631.0,0.0003555]
[1641742934920,0.93962632,41632.0,41631.0,0.00017775]
[1641742935119,0.47441617,41632.0,41631.0,0.00017775]
[1641742935319,1.05570427,41632.0,41631.0,0.00017775]
[1641742935561,1.01070207,41632.0,41631.0,0.00017775]
[1641742935764,1.06670427,41632.0,41631.0,0.00017775]
[1641742935961,1.06670427,41632.0,41629.0,0.00017776]
[1641742936161,0.0601,41631.0,41629.0,0.00017776]
[1641742936364,0.548,41630.0,41629.0,0.00017776]
[1641742936561,0.57941397,41630.0,41629.0,0.00017776]
[1641742937163,0.57941397,41630.0,41627.0,0.00017777]
[1641742937565,0.03141397,41629.0,41627.0,0.00017777]
[1641742937764,0.408097,41628.0,41627.0,0.00017777]
[1641742938164,0.43951097,41628.0,41626.0,0.00017778]
[1641742938363,0.43170351,41627.0,41626.0,0.00017778]
[1641742938563,0.47970351,41627.0,41626.0,0.00017778]
[1641742939213,0.47970351,41627.0,41624.0,0.00017779]
[1641742939413,0.59990951,41627.0,41624.0,0.00017779]
[1641742939815,0.61490951,41627.0,41624.0,0.00017779]
[1641742940412,0.61490951,41627.0,41623.0,0.0001778]
[1641742940613,0.060105,41626.0,41623.0,0.0001778]
[1641742940812,0.108105,41625.0,41623.0,0.0001778]
[1641742941014,1.26569638,41624.0,41623.0,0.0001778]
[1641742941215,1.3462921,41624.0,41623.0,0.0001778]
[1641742941415,1.5462921,41624.0,41623.0,0.0001778]
[1641742941712,1.80345393,41624.0,41623.0,0.0001778]
[1641742941911,2.15146305,41624.0,41623.0,0.0001778]
[1641742942313,1.05146305,41624.0,41622.0,0.00017781]
[1641742942513,0.60364808,41623.0,41622.0,0.00017781]
[1641742942715,0.84774515,41623.0,41622.0,0.00017781]
[1641742942978,0.84774515,41623.0,41621.0,0.00017781]
[1641742943177,0.79643982,41622.0,41621.0,0.00017781]
[1641742943377,0.87580124,41622.0,41621.0,0.00017781]
[1641742943578,0.29886396,41617.0,41615.0,0.00071135]
[1641742943779,0.42024907,41616.0,41611.0,0.04412103]
[1641742943980,0.43010515,41614.0,41611.0,0.04412103]
[1641742944183,0.048,41613.0,41611.0,0.04412103]
[1641742945781,0.009,41613.0,41612.0,0.00014718]
[1641742945980,0.057,41613.0,41612.0,0.00014718]
[1641742946381,0.457,41613.0,41612.0,0.00014718]
[1641742946713,0.057,41613.0,41612.0,0.00014718]
[1641742947013,0.048,41613.0,41612.0,0.00014718]
[1641742947817,0.063,41613.0,41612.0,0.00014718]
[1641742949015,0.048,41613.0,41612.0,0.00014718]
[1641742949215,1.0,41613.0,41612.0,0.00014718]
[1641742949820,1.055,41613.0,41612.0,0.00214718]
[1641742950663,1.055,41613.0,41612.0,0.00224151]
[1641742951061,1.0,41613.0,41612.0,0.00024151]
[1641742951862,1.08,41613.0,41612.0,0.00024151]
[1641742952964,1.0,41613.0,41612.0,0.00024151]
[1641742953865,1.031,41613.0,41612.0,0.00831173]
[1641742954911,1.031,41613.0,41612.0,0.00824151]
[1641742955111,1.0,41613.0,41612.0,0.00024151]
[1641742955716,1.0,41613.0,41612.0,0.39913399]
[1641742956112,1.0,41613.0,41612.0,0.78658521]
[1641742956912,1.0,41613.0,41612.0,0.39920421]
[1641742957113,1.0,41613.0,41612.0,0.36913399]
[1641742957813,1.0,41613.0,41612.0,0.39113399]
[1641742959059,1.0,41613.0,41612.0,0.36913399]
[1641742959660,1.0,41613.0,41611.0,0.28901992]
[1641742959860,1.0,41613.0,41612.0,0.018]
[1641742960663,1.0,41613.0,41612.0,0.01824151]
[1641742960861,0.18092818,41613.0,41612.0,0.01824151]
[1641742961063,0.18092818,41613.0,41612.0,0.00024151]
[1641742961811,0.19092818,41613.0,41612.0,0.01824151]
[1641742963012,0.18092818,41613.0,41612.0,0.00024151]
[1641742963715,0.18092818,41613.0,41612.0,0.29902022]
[1641742963914,0.18092818,41613.0,41612.0,0.37802022]
[1641742964112,0.18092818,41613.0,41612.0,0.64804987]
[1641742964312,0.18092818,41613.0,41612.0,0.69804987]
[1641742964513,0.18092818,41613.0,41612.0,0.79804987]
[1641742964711,0.18092818,41613.0,41612.0,1.18543087]
[1641742965311,0.18092818,41613.0,41612.0,1.10643087]
[1641742965762,0.18092818,41613.0,41612.0,0.73104987]
[1641742967163,0.18092818,41613.0,41612.0,0.71904987]
[1641742967763,0.18092818,41613.0,41612.0,0.73404987]
[1641742968366,0.18092818,41613.0,41612.0,0.63412009]
[1641742968564,0.18092818,41613.0,41612.0,0.73412009]
[1641742968765,0.18092818,41613.0,41612.0,0.58412009]
[1641742968962,0.18092818,41613.0,41612.0,0.56912009]
[1641742969215,0.18092818,41613.0,41612.0,0.30077376]
[1641742969616,0.18092818,41613.0,41612.0,0.30070354]
[1641742969815,0.18092818,41613.0,41612.0,0.30970354]
[1641742970416,0.18092818,41613.0,41612.0,0.00931173]
[1641742971019,0.18092818,41613.0,41612.0,0.00031173]
[1641742971616,0.18092818,41613.0,41612.0,0.00024151]
[1641742971817,0.18092818,41613.0,41612.0,0.00824151]
[1641742973568,0.18092818,41613.0,41612.0,0.00024151]
[1641742973763,0.18092818,41613.0,41612.0,0.07024151]
[1641742974366,0.18092818,41613.0,41612.0,0.36569259]
[1641742974967,0.18092818,41613.0,41612.0,0.29569259]
[1641742975765,0.18092818,41613.0,41612.0,0.34845108]
[1641742976067,0.19998,41621.0,41613.0,0.43512447]
[1641742976467,0.19998,41621.0,41615.0,0.30464641]
[1641742976915,0.19998,41621.0,41615.0,0.3048231]
[1641742977616,0.19998,41621.0,41616.0,0.29610081]
[1641742977816,0.006,41621.0,41616.0,0.29733059]
[1641742978015,0.006,41621.0,41617.0,0.387381]
[1641742978215,0.006,41621.0,41620.0,0.00128835]
[1641742978619,0.006,41621.0,41620.0,0.35494578]
[1641742978816,0.006,41621.0,41620.0,0.7487652]
[1641742979015,0.00020794,41624.0,41620.0,0.7487652]
[1641742979215,0.00020794,41624.0,41620.0,0.68867765]
[1641742979616,0.00107455,41627.0,41622.0,0.33054427]
[1641742980216,0.03250063,41632.0,41622.0,0.33054427]
[1641742980463,0.09259063,41632.0,41623.0,0.299768]
[1641742980965,0.03250063,41631.0,41623.0,0.299768]
[1641742981767,0.03250063,41631.0,41623.0,0.303768]
[1641742983268,0.03250063,41631.0,41623.0,0.299768]
[1641742983567,0.00021536,41629.0,41623.0,0.299768]
[1641742983771,0.00021536,41629.0,41623.0,0.342768]
[1641742983968,0.00021536,41629.0,41623.0,0.3428382]
[1641742984221,0.00021536,41629.0,41623.0,0.0430702]
[1641742984623,0.00021537,41628.0,41623.0,0.0430702]
[1641742984825,0.00021537,41628.0,41626.0,0.39953755]
[1641742985623,0.03271599,41629.0,41626.0,0.39953755]
[1641742985823,0.00021536,41629.0,41626.0,0.41053755]
[1641742986023,0.03250063,41628.0,41626.0,0.41053755]
[1641742986223,0.03271599,41629.0,41626.0,0.41053755]
[1641742986426,0.03250063,41627.0,41626.0,0.41053755]
[1641742986627,0.03250063,41628.0,41626.0,0.41053755]
[1641742986924,0.03250063,41627.0,41626.0,0.41053755]
[1641742987124,0.03250063,41627.0,41626.0,0.39953755]
[1641742987425,0.00021181,41629.0,41623.0,0.29811851]
[1641742987623,0.03250063,41627.0,41623.0,0.29811851]
[1641742987825,0.03250063,41627.0,41626.0,0.011]
[1641742988064,0.38250063,41627.0,41626.0,0.011]
[1641742988264,0.00020755,41628.0,41626.0,0.011]
[1641742988466,0.03250063,41627.0,41626.0,0.011]
[1641742988665,0.03250063,41627.0,41626.0,0.34399395]
[1641742988866,0.03270818,41628.0,41626.0,0.65082055]
[1641742989169,0.03270818,41628.0,41627.0,0.30503099]
[1641742989170,0.00020755,41628.0,41627.0,0.30503099]
[1641742989366,0.00020755,41629.0,41627.0,0.30503099]
[1641742989767,0.00020755,41629.0,41627.0,0.31703099]
[1641742990369,0.00020755,41630.0,41627.0,0.43718641]
[1641742990967,0.00020755,41630.0,41627.0,0.012]
[1641742991168,0.00020755,41630.0,41626.0,0.33299395]
[1641742991568,0.00020794,41631.0,41626.0,0.33299395]
[1641742991819,0.006,41630.0,41627.0,0.29988131]
[1641742992013,0.006,41630.0,41626.0,0.37199395]
[1641742992613,0.006,41630.0,41627.0,0.29819734]
[1641742992813,0.006,41630.0,41626.0,0.37199395]
[1641742993217,0.9069,41634.0,41626.0,0.39307324]
[1641742993420,0.9069,41634.0,41626.0,0.33299395]
[1641742993620,0.02256796,41633.0,41627.0,0.29943221]
[1641742993816,0.02256796,41633.0,41626.0,0.35299395]
[1641742994015,0.02256796,41633.0,41627.0,0.30329572]
[1641742994217,0.02256796,41633.0,41628.0,0.00129886]
[1641742994817,0.9069,41634.0,41628.0,0.00129886]
[1641742995018,0.9069,41634.0,41628.0,0.06137671]
[1641742995471,0.2954,41637.0,41633.0,0.25132556]
[1641742995669,0.2903087,41642.0,41633.0,0.59643394]
[1641742996072,0.33647222,41642.0,41633.0,0.25132556]
[1641742996870,0.00021534,41639.0,41633.0,0.25132556]
[1641742997072,0.00021534,41639.0,41634.0,0.30134153]
[1641742997273,0.00021534,41639.0,41634.0,0.37448153]
[1641742997869,0.00021534,41639.0,41634.0,0.38148153]
[1641742998071,0.00021534,41639.0,41638.0,0.26358681]
[1641742998269,0.00021534,41639.0,41634.0,0.08014]
[1641742998476,0.00021534,41639.0,41634.0,0.007]
[1641742999218,0.00021534,41639.0,41635.0,0.3114644]
[1641742999819,0.00021534,41639.0,41635.0,0.3164644]
[1641743000219,0.00020763,41639.0,41635.0,0.3164644]
[1641743000420,0.00020763,41639.0,41636.0,0.42855528]
[1641743000619,0.00020763,41639.0,41636.0,0.4287864]
[1641743001421,0.00020763,41640.0,41636.0,0.4287864]
[1641743001621,0.00020763,41640.0,41636.0,0.72972817]
[1641743001921,0.00020763,41640.0,41636.0,0.73372817]
[1641743002124,0.00020763,41640.0,41637.0,0.00125355]
[1641743002522,0.00041526,41640.0,41637.0,0.00125355]
[1641743002825,0.00020763,41640.0,41637.0,0.00125355]
[1641743003068,0.00020763,41640.0,41637.0,0.06131749]
[1641743003668,0.00020762,41641.0,41637.0,0.06131749]
[1641743003868,0.00020762,41641.0,41637.0,0.06731749]
[1641743004067,0.00020762,41641.0,41640.0,0.2932952]
[1641743004269,0.00020762,41641.0,41640.0,0.35335286]
[1641743004869,0.00020429,41643.0,41640.0,0.35335286]
[1641743005069,0.00020429,41643.0,41640.0,0.65252648]
[1641743005771,0.00020428,41644.0,41640.0,0.65775587]
[1641743006570,0.00020428,41644.0,41640.0,0.00522939]
[1641743007225,0.00020428,41644.0,41640.0,0.00022939]
[1641743007823,0.00020428,41644.0,41640.0,0.00122939]
[1641743008022,0.00041234,41644.0,41640.0,0.00122939]
[1641743008224,0.00020806,41644.0,41640.0,0.00122939]
[1641743009023,0.03314104,41644.0,41640.0,0.00022939]
[1641743009226,0.060074,41643.0,41640.0,0.00022939]
[1641743009627,0.03272492,41642.0,41640.0,0.00022939]
[1641743010126,0.85752264,41641.0,41640.0,0.00022939]
[1641743010330,1.10752264,41641.0,41640.0,0.00022939]
[1641743010575,0.060096,41637.0,41631.0,0.00022853]
[1641743010776,0.060096,41634.0,41631.0,0.00022853]
[1641743010974,0.43607073,41633.0,41631.0,0.00022853]
[1641743011176,0.46879565,41633.0,41631.0,0.00022853]
[1641743011579,0.53272492,41632.0,41631.0,0.00022853]
[1641743012879,0.03272492,41632.0,41631.0,0.00022853]
[1641743013879,0.04772492,41632.0,41631.0,0.00022853]
[1641743015121,0.34962148,41632.0,41631.0,0.00022853]
[1641743015518,0.44962148,41632.0,41631.0,0.00022853]
[1641743015719,0.84962148,41632.0,41625.0,0.0006589]
[1641743015919,0.060103,41629.0,41625.0,0.00048139]
[1641743016321,0.03272492,41628.0,41625.0,0.00048139]
[1641743016919,0.03272492,41628.0,41625.0,0.00048141]
[1641743017524,0.34082053,41631.0,41625.0,0.00048141]
[1641743017722,0.29451113,41631.0,41625.0,0.00048141]
[1641743017972,0.013,41628.0,41625.0,0.00030388]
[1641743018170,0.060105,41627.0,41625.0,0.00030388]
[1641743018372,0.073105,41628.0,41625.0,0.00030388]
[1641743018373,0.013,41628.0,41625.0,0.00030388]
[1641743019071,0.29451113,41631.0,41625.0,0.00030388]
[1641743019270,0.0601,41628.0,41625.0,0.00030388]
[1641743019973,0.4261,41628.0,41625.0,0.00030388]
[1641743020177,1.2,41626.0,41625.0,0.00030388]
[1641743020373,1.20125348,41626.0,41625.0,0.00030388]
[1641743020575,1.35125348,41626.0,41624.0,0.00048314]
[1641743020772,1.160115,41625.0,41624.0,0.00048314]
[1641743020974,1.49935149,41625.0,41624.0,0.00048314]